Cogmind - Beta 17 @@@ ROGUE MODE // 2026.07.14 @ 13:20:51 Player: NuclearMayhem Result: Self-destructed Performance ------------- Evolutions (5) 2500 Regions Visited (10) 2000 Robots Destroyed (70) 350 Value Destroyed (4512) 4512 Prototype IDs (11) 220 Alien Tech Used (0) 0 Bonus (11582) 11582 TOTAL SCORE: 21164 Bonus ------- High Alert Combat Kills 145 Follower Combat Kills 432 Prayed to X0-1V1 5000 Major X0-1V1 Interference 4850 Entered Garrisons 400 Used RIF Installer 1000 Friendly Fire -245 Cogmind --------- Core Integrity 441/990 Matter 800/800 Energy 99/100 System Corruption 9% Temperature Cool (0) Movement Core (50) Location -5/Factory Parts ------- > --- POWER (2) -------- (None) > --- PROPULSION (5) --- (None) > --- UTILITY (10) ----- Relay Coupler [Demolisher] (25) X0-1V1's Piety Tracker > --- WEAPON (1) ------- Force Lance > --- INVENTORY (5) ---- Relay Coupler [Heavy] (14) Relay Coupler [Heavy] (11) Relay Coupler [Behemoth] (9) Peak State ------------ > --- POWER ------------ Micro Nuclear Core Light Angular Momentum Engine > --- PROPULSION ------- Gravmag System Gravmag System Gravmag System Gravmag System > --- UTILITY ---------- Relay Coupler [C] Relay Coupler [C] Relay Coupler [Sentry] Relay Coupler [Sentry] Relay Coupler [Sentry] Relay Coupler [Demolisher] Relay Coupler [Hunter] X0-1V1's Piety Tracker > --- WEAPON ----------- Plasma Rifle > --- INVENTORY -------- Relay Coupler [C] Relay Coupler [C] Relay Coupler [Heavy] Relay Coupler [Heavy] Remote Datajack [Rating: 84] Favorites ----------- Power Light Nuclear Core Engine Makeshift Power Source Power Core Light Nuclear Core Reactor Reinforced Antimatter Reactor Propulsion Improved Aluminum Leg Treads Heavy Treads Leg Improved Aluminum Leg Hover Unit Gravmag System Flight Unit Surge Thruster Utility Relay Coupler [Sentry] Device X0-1V1's Piety Tracker Storage Small Storage Unit Processor Core Analyzer Hackware Relay Coupler [Sentry] Protection Improved Heavy Armor Plating Weapon EM Pulse Gun Energy Gun EM Pulse Gun Energy Cannon Light EM Pulse Cannon Ballistic Gun Autogun Launcher Long-range Missile Launcher Special Weapon Remote Datajack Impact Weapon Shock Maul Slashing Weapon Katana Piercing Weapon Spear Special Melee Weapon Improved Datajack Build | -11 -10 -9 -9 -8 -7 -6 -6 -6 -6 -5 ------- Run | Yrd Mat Mat Min Mat Fac Fac Gar Fac Gar Fac Slots Evolved 10 | . . 2 . 2 2 2 . . . 2 Power . | . . . . . . . . . . . Propulsion 4 | . . 1 . . 1 2 . . . . Utility 6 | . . 1 . 2 1 . . . . 2 Weapon . | . . . . . . . . . . . Parts Attached 151 | 9 12 10 3 25 15 . 28 3 27 19 Power 16 | 1 2 4 . 2 1 . 2 . 4 . Engine 8 | 1 1 3 . 1 . . 1 . 1 . Core 7 | . 1 1 . 1 1 . 1 . 2 . Reactor 1 | . . . . . . . . . 1 . Propulsion 44 | 4 5 1 . 4 7 . 8 . 7 8 Treads 7 | 2 . . . . . . . . 3 2 Leg 12 | 2 5 1 . 1 . . 3 . . . Wheel . | . . . . . . . . . . . Hover 4 | . . . . . . . . . 4 . Flight 21 | . . . . 3 7 . 5 . . 6 Utility 57 | 1 3 3 1 11 7 . 15 2 10 4 Device 20 | . 1 . 1 7 3 . 4 1 1 2 Storage 5 | 1 2 1 . . . . . . . 1 Processor 8 | . . . . 3 4 . . 1 . . Hackware 19 | . . . . . . . 11 . 8 . Protection 5 | . . 2 . 1 . . . . 1 1 Artifact . | . . . . . . . . . . . Weapon 34 | 3 2 2 2 8 . . 3 1 6 7 Energy Gun 8 | 3 1 . . 3 . . . . 1 . Energy Cannon 2 | . 1 . . 1 . . . . . . Ballistic Gun 3 | . . . . 1 . . 2 . . . Ballistic Cannon . | . . . . . . . . . . . Launcher 4 | . . . . 1 . . . . 3 . Special Weapon 4 | . . . 1 . . . . 1 1 1 Impact Weapon 3 | . . . . 1 . . . . . 2 Slashing Weapon 5 | . . 2 . . . . 1 . . 2 Piercing Weapon 2 | . . . 1 . . . . . . 1 Special Melee Weapon 3 | . . . . 1 . . . . 1 1 Unidentified Prototypes 9 | . 1 . 1 5 . . . . . 2 Corrupted Parts 3 | . 2 . . . . . . . 1 . System Corruption 16 | . 7 . . . . . . . 9 . Parts Lost 54 | . 2 4 . 4 8 . 9 1 17 9 Power 9 | . 1 2 . 1 1 . . . 3 1 Propulsion 20 | . . . . 1 4 . 3 . 7 5 Utility 16 | . . 1 . 1 2 . 4 1 4 3 Weapon 9 | . 1 1 . 1 1 . 2 . 3 . Highest Loss Streak 11 | . 2 2 . 4 8 . 4 1 11 3 To Critical Strikes . | . . . . . . . . . . . Average Backups 6 | . 6 9 14 10 4 2 3 5 4 4 Power . | . . . 2 1 . . . . . . Propulsion . | . 1 3 3 2 1 . . . . . Utility 3 | . 4 4 6 4 1 1 2 5 2 3 Weapon . | . . . 2 1 . . . . 1 . Tool/Special . | . . . . . . . . . . . Unused Backups 33 | . 4 3 . 11 4 . 4 . 4 3 Power 3 | . 1 . . 1 . . 1 . . . Propulsion 4 | . 1 . . 3 . . . . . . Utility 17 | . 1 3 . 4 1 . 3 . 2 3 Weapon 9 | . 1 . . 3 3 . . . 2 . Tool/Special . | . . . . . . . . . . . Average Slot Usage (%) 80 | . 95 95 100 89 90 43 73 87 70 50 Engine 3 | . 3 4 11 4 . . 3 . 2 3 Core 4 | . 9 4 . 4 6 . 1 6 2 . Reactor 1 | . . . . . . . . . 3 4 Treads 2 | . . . . . . . . . 6 6 Leg 13 | . 28 33 33 18 . . 8 . . . Flight 5 | . . . . 7 24 6 7 31 4 2 Device 8 | . . 11 11 27 22 6 9 10 6 7 Storage 7 | . 23 11 11 6 . . . . . . Processor 4 | . . . . 4 29 31 26 . . . Hackware 10 | . . . . . . . 7 32 30 15 Protection 3 | . . 10 11 2 . . . . 3 3 Energy Gun 4 | . 18 5 . 1 . . . . . . Energy Cannon 2 | . 9 3 . 4 . . . . . . Special Weapon 1 | . . . 5 3 . . . 5 1 1 Slashing Weapon 2 | . . 11 10 . . . 2 . . . Piercing Weapon 1 | . . . 5 2 6 . . . . . Peak Build Rating 84 | 6 25 33 42 51 68 33 75 76 84 80 Average Rating 44 | 3 9 29 33 41 57 32 54 71 70 61 On Entrance 39 | . 6 25 33 35 47 30 33 75 71 80 Avg Prop Armor Cover (%) 22 | . . . . . . . . . 23 9 Naked Turns . | . . . . . . . . . . . Heaviest Build 52 | 13 25 35 33 43 14 1 20 11 52 52 Greatest Support 167 | 40 26 39 46 49 25 12 52 27 167 167 Greatest Overweight (x) 4 | . 1 . . . . . 1 . 1 4 Average Overweight (x) . | . . . . . . . . . . . Largest Inventory Capacity 15 | 8 10 15 15 15 5 5 5 5 5 5 Average Capacity 7 | 6 8 13 15 12 5 5 5 5 5 5 Most Carried 15 | 2 10 13 15 15 5 3 5 5 5 5 Average Carried 6 | . 6 9 14 10 4 2 3 5 4 4 Final Capacity 15 | 8 10 15 15 5 5 5 5 5 5 5 Final Carried 15 | 2 10 13 15 5 3 3 5 5 5 3 Transmogrified Parts 1 | . . . . . 1 . . . . . Integrity Recovered 8 | . . . . . 8 . . . . . Class Distribution -------------------- 62% | Mutant 11% | Scavenger-Mutant 9% | Bothacker-Mutant 7% | Bothacker-Sprinter 5% | Sprinter Dominant Class ---------------- Mutant | -10/Materials Mutant | -9/Materials Mutant | -9/Mines Mutant | -8/Materials Sprinter | -7/Factory Sprinter | -6/Factory Scavenger-Mutant | -6/Garrison Bothacker-Sprinter | -6/Factory Mutant | -6/Garrison Mutant | -5/Factory Resources | -11 -10 -9 -9 -8 -7 -6 -6 -6 -6 -5 ----------- Run | Yrd Mat Mat Min Mat Fac Fac Gar Fac Gar Fac Matter Collected 2909 | 194 236 204 86 363 364 . 319 46 873 224 Remotely . | . . . . . . . . . . . Salvage Created 2765 | . 528 383 . 355 356 . 419 . 218 506 Parts 127 | . 24 20 . 15 16 . 26 . 5 21 Haulers Intercepted 2 | . 2 . . . . . . . . . Recyclers Shooed 3 | . . 1 . . . . . . . 2 Parts Field Recycled . | . . . . . . . . . . . Retrieved Matter . | . . . . . . . . . . . Parts Self-Destructed . | . . . . . . . . . . . Prevented . | . . . . . . . . . . . Parts Restored . | . . . . . . . . . . . Kills | -11 -10 -9 -9 -8 -7 -6 -6 -6 -6 -5 ------- Run | Yrd Mat Mat Min Mat Fac Fac Gar Fac Gar Fac Combat Hostiles Destroyed 52 | . 9 7 . 6 7 . 10 . 7 6 Melee 19 | . . 5 . . 7 . 3 . . 4 Guns 16 | . 8 1 . . . . 7 . . . Cannons 7 | . 1 1 . 5 . . . . . . AOE 7 | . . . . . . . . . 7 . Classes Destroyed 14 | . 6 2 . 1 1 . 1 . 3 . Worker 6 | . 1 1 . 1 . . . . . 3 Hauler 2 | . 2 . . . . . . . . . Recycler 2 | . . 1 . . . . . . . 1 Operator 2 | . 1 . . 1 . . . . . . Watcher 5 | . 2 . . 1 2 . . . . . Swarmer 11 | . 3 . . . 3 . 4 . . 1 Cutter 2 | . . . . . . . 1 . 1 . Grunt 22 | . 6 6 . 5 2 . 3 . . . Duelist 1 | . . . . 1 . . . . . . Sentry 5 | . . 1 . . 1 . 2 . . 1 Hunter 3 | . . . . . 1 . . . . 2 Programmer 5 | . . . . . . . . . 3 2 Behemoth 3 | . . . . . . . . . 3 . Infiltrator 1 | . . . . . . . . . 1 . Best Kill Streak 6 | . 4 4 . 4 6 . 4 . 3 3 Combat Bots Only 5 | . 2 4 . 4 5 . 4 . 3 3 Max Kills in Single Turn 2 | . 2 1 . 1 1 . 1 . 2 1 Gunslinging 1 | . 1 . . . . . . . . . Exploded 2 | . . . . . . . . . 2 . Melee 1 | . . 1 . . 1 . 1 . . 1 Uniques/NPCs Destroyed . | . . . . . . . . . . . Combat | -11 -10 -9 -9 -8 -7 -6 -6 -6 -6 -5 -------- Run | Yrd Mat Mat Min Mat Fac Fac Gar Fac Gar Fac Hostile Shots Fired 768 | . 73 34 . 53 135 . 140 2 93 238 Missed 246 | . 18 8 . 17 56 . 56 2 29 60 Hits 522 | . 55 26 . 36 79 . 84 . 64 178 Melee 3 | . . . . 1 . . 2 . . . Projectile 519 | . 55 26 . 35 79 . 82 . 64 178 AOE 3 | . . . . . . . 2 . 1 . Critical Strikes 15 | . . 1 . 1 1 . . . 1 11 Damage Taken 9023 | . 547 410 . 578 1051 . 1270 87 1635 3445 Core 2479 | . 114 11 . 89 594 . 569 16 537 549 Absorbed by Shields . | . . . . . . . . . . . Ignored by Resistances 113 | . . . . . 83 . . . . 30 Regen/Repaired (Parts) 483 | . . . . . . . . . . 483 Core Remaining (%) 59 | 100 54 . 100 83 13 . . . 8 . Volleys Fired 166 | . 54 12 . 18 . . 26 6 46 4 Largest 2 | . 2 2 . 2 . . 2 1 1 1 Hottest 145 | . 96 96 . 145 . . 53 5 75 7 Shots Fired 256 | . 107 22 . 26 . . 44 6 47 4 Gun 153 | . 93 12 . . . . 44 . 4 . Cannon 42 | . 14 10 . 18 . . . . . . Launcher 23 | . . . . . . . . . 23 . Special 38 | . . . . 8 . . . 6 20 4 Kinetic 44 | . . . . . . . 44 . . . Thermal 95 | . 65 . . 26 . . . . 4 . Explosive 23 | . . . . . . . . . 23 . Electromagnetic 64 | . 42 22 . . . . . . . . Robot Hit Streak 16 | . 11 13 . 16 . . 4 8 13 2 Robot Miss Streak 10 | . 10 2 . 1 . . 3 1 2 1 Penetration Max . | . . . . . . . . . . . Secondary Targets 1 | . 1 . . . . . . . . . Max Gunslinging Chain 1 | . 1 . . . . . . . . . Shots Hit Robots 241 | . 52 31 . 27 20 . 33 5 32 41 Core Hits 120 | . 24 13 . 12 11 . 22 . 26 12 Critical Kills . | . . . . . . . . . . . Critical Parts Destroyed 3 | . . . . . . . . . . 3 Critical Strikes 15 | . 1 . . 1 5 . 3 . . 5 Burn 2 | . 1 . . 1 . . . . . . Smash 4 | . . . . . . . . . . 4 Sever 3 | . . . . . . . 3 . . . Impale 6 | . . . . . 5 . . . . 1 Melee Attacks 132 | . . 14 . 8 34 . 27 . 4 45 Impact 21 | . . . . . . . . . . 21 Slashing 41 | . . 14 . . . . 27 . . . Piercing 70 | . . . . 8 34 . . . 4 24 Sneak Attacks 15 | . . 3 . 1 . . . . 4 7 Combat Hostiles 5 | . . 1 . . . . . . 4 . Follow-up Attacks 3 | . . 3 . . . . . . . . Damage Inflicted 6859 | . 857 834 . 743 694 . 788 . 1540 1403 Guns 1157 | . 598 141 . . . . 418 . . . Cannons 798 | . 214 179 . 405 . . . . . . Explosions 1594 | . 45 26 . . . . . . 1523 . Melee 3206 | . . 488 . 257 694 . 370 . 17 1380 Ramming 23 | . . . . . . . . . . 23 Kinetic 418 | . . . . . . . 418 . . . Thermal 936 | . 424 26 . 486 . . . . . . Explosive 1523 | . . . . . . . . . 1523 . Electromagnetic 753 | . 433 320 . . . . . . . . Impact 858 | . . . . . . . . . . 858 Slashing 858 | . . 488 . . . . 370 . . . Piercing 1490 | . . . . 257 694 . . . 17 522 Highest Corruption 18 | . 7 . . . 18 . . 1 12 9 Average Corruption 6 | . 6 . . . 13 . . 1 6 5 Corruption Purged . | . . . . . . . . . . . Corruption Blocked . | . . . . . . . . . . . Effects 63 | . 32 . . . 12 . . 2 14 3 Message Errors 12 | . 8 . . . 2 . . . 2 . Matter Fused 15 | . 8 . . . 2 . . . 4 1 Heat Flow Errors 8 | . 4 . . . . . . . 2 2 Energy Discharges 5 | . 2 . . . . . . . 3 . Parts Rejected 2 | . . . . . 2 . . . . . Data Loss (minor) 11 | . 7 . . . 2 . . . 2 . Data Loss (major) 4 | . 1 . . . 1 . . 2 . . Misfires 3 | . 2 . . . . . . . 1 . Misdirections 3 | . . . . . 3 . . . . . Overload Shots . | . . . . . . . . . . . Overflow Damage 499 | . . 48 . 40 23 . . . . 388 Projectiles 10 | . . 10 . . . . . . . . Explosions 13 | . . 13 . . . . . . . . Melee 476 | . . 25 . 40 23 . . . . 388 Knockbacks 2 | . . . . . . . . . . 2 Impact 2 | . . . . . . . . . . 2 Kinetic . | . . . . . . . . . . . Secondary . | . . . . . . . . . . . Self-Inflicted Damage 355 | . 4 39 . . . . 153 . 154 5 Shots 9 | . 1 1 . . . . 1 . 6 . Rammed 11 | . . . . . . . . . . 11 Targets Rammed 11 | . . . . . . . . . . 11 Kicked . | . . . . . . . . . . . Crushed . | . . . . . . . . . . . Highest Temperature 321 | . 321 265 . 10 279 . 185 40 272 272 Average Temperature 90 | . 91 130 . 9 79 . 48 16 77 112 Received Heat Transfer 1494 | . 180 213 . 330 96 . 279 . 90 306 Effects 2 | . . 1 . . . . . . 1 . Interference 2 | . . 1 . . . . . . 1 . Siege Activations . | . . . . . . . . . . . Martial Activations . | . . . . . . . . . . . Shielding Activations . | . . . . . . . . . . . Robots Disrupted . | . . . . . . . . . . . Combat Hostiles . | . . . . . . . . . . . Robots Corrupted 3 | . . . . . . . . . . 3 Combat Hostiles 2 | . . . . . . . . . . 2 Parts Fried 8 | . 3 2 . . . . . . . 3 Impact Corruptions 8 | . . . . . . . . . . 8 Robots Melted 1 | . . . . 1 . . . . . . Combat Hostiles 1 | . . . . 1 . . . . . . Parts Melted 12 | . 5 . . 7 . . . . . . Heat Transferred 2441 | . 1116 50 . 1275 . . . . . . Parts Sabotaged . | . . . . . . . . . . . Parts Stolen . | . . . . . . . . . . . Parts Stripped . | . . . . . . . . . . . Power Chain Reactions 2 | . 1 1 . . . . . . . . Alert | -11 -10 -9 -9 -8 -7 -6 -6 -6 -6 -5 ------- Run | Yrd Mat Mat Min Mat Fac Fac Gar Fac Gar Fac Maximum Alert Level 3 | . . . . . 1 . 3 2 2 1 Low Security (%) 57 | 100 100 100 100 100 41 100 15 . . 55 Level 1 19 | . . . . . 58 . 37 24 23 44 Level 2 21 | . . . . . . . 32 75 76 . Level 3 1 | . . . . . . . 14 . . . Level 4 . | . . . . . . . . . . . Level 5 . | . . . . . . . . . . . High Security . | . . . . . . . . . . . Max Security . | . . . . . . . . . . . Peak Influence 862 | . 65 108 166 106 271 110 862 460 628 329 Initial 452 | . . . . 48 40 110 77 452 252 329 Average 197 | . 13 34 29 63 182 110 394 416 459 193 Influence Increases 3488 | . 329 247 166 222 466 . 915 48 806 289 Destroy 0b10 Robot/C 1400 | . 180 140 . 120 200 . 300 20 300 140 Destroy 0b10 Robot/NC 95 | . 30 10 . 15 20 . . . . 20 Destroy Leader 186 | . 48 20 . 22 36 . 10 . 20 30 Allied During Kill 121 | . . . . . 34 . 22 4 60 1 Successful Hack 128 | . 38 14 . . . . 14 24 . 38 Disable Machine 45 | . 30 . . . . . . . 15 . Anti-Garrison Action 500 | . . . . . . . 350 . 150 . Destroy Structure 253 | . 3 3 . 5 2 . 54 . 186 . Partial Spotted 60 | . . . . 30 15 . 15 . . . Lose Combat Pursuer 420 | . . 60 . 30 45 . 150 . 75 60 Miscellaneous 280 | . . . 166 . 114 . . . . . Influence Decreases 3368 | . 329 247 40 258 330 116 163 550 538 797 Entered New Map 1094 | . . . . 78 50 116 33 410 108 299 Time Decay 1267 | . 309 140 40 140 140 . . 130 . 368 Lost Part 530 | . 20 30 . 40 80 . 90 10 170 90 Lost Ally 400 | . . . . . 60 . 40 . 260 40 Purge Threat 77 | . . 77 . . . . . . . . Squads Dispatched 15 | . 1 1 . . 6 . . 2 . 5 Investigation 1 | . . 1 . . . . . . . . Extermination 3 | . . . . . 1 . . . . 2 Reinforcement 5 | . 1 . . . 1 . . 1 . 2 Assault 4 | . . . . . 3 . . 1 . . Garrison 2 | . . . . . 1 . . . . 1 Intercept . | . . . . . . . . . . . Searches Triggered . | . . . . . . . . . . . Construction Impeded 1 | . . . . . . . . . . 1 Haulers Reinforced 1 | . . . . . . . . . . 1 Active Scanning Responses . | . . . . . . . . . . . Cargo Convoy Interrupts . | . . . . . . . . . . . Stealth | -11 -10 -9 -9 -8 -7 -6 -6 -6 -6 -5 --------- Run | Yrd Mat Mat Min Mat Fac Fac Gar Fac Gar Fac Distress Signals 7 | . 1 2 . 2 1 . . . . 1 Communications Jammed . | . . . . . . . . . . . Distress Signals . | . . . . . . . . . . . Times Spotted 165 | . 17 17 . 14 38 . 24 6 28 21 Peak Tracking Total 11 | . 4 6 . 7 11 . 7 2 6 7 Tactical Retreats 18 | . . 3 . 2 1 . 7 . 2 3 Traps | -11 -10 -9 -9 -8 -7 -6 -6 -6 -6 -5 ------- Run | Yrd Mat Mat Min Mat Fac Fac Gar Fac Gar Fac Traps Triggered 12 | . 2 . . . . . 4 2 3 1 Indirectly . | . . . . . . . . . . . Trap Hack Attempts . | . . . . . . . . . . . Triggered . | . . . . . . . . . . . Disarmed . | . . . . . . . . . . . Reprogrammed . | . . . . . . . . . . . Reused . | . . . . . . . . . . . Traps Extracted . | . . . . . . . . . . . Installed . | . . . . . . . . . . . Triggered . | . . . . . . . . . . . Machines | -11 -10 -9 -9 -8 -7 -6 -6 -6 -6 -5 ---------- Run | Yrd Mat Mat Min Mat Fac Fac Gar Fac Gar Fac Machines Disabled 23 | . 2 . . . . . 9 . 12 . Max in Single Turn 4 | . 1 . . . . . 2 . 4 . Garrison Access 1 | . . . . . 1 . . . . . Garrison Relay 9 | . . . . . . . 6 . 3 . Phase Generator 1 | . . . . . . . 1 . . . Machines Repaired . | . . . . . . . . . . . Machines Dismantled . | . . . . . . . . . . . Machines Sabotaged . | . . . . . . . . . . . Overloaded Fab Kills . | . . . . . . . . . . . Hacking | -11 -10 -9 -9 -8 -7 -6 -6 -6 -6 -5 --------- Run | Yrd Mat Mat Min Mat Fac Fac Gar Fac Gar Fac Machines Accessed 22 | . 9 3 . . 1 1 3 2 . 3 Terminals 14 | . 8 3 . . . . 3 . . . Fabricators 1 | . . . . . . . . . . 1 Repair Stations 1 | . . . . . . . . . . 1 Recycling Units 1 | . 1 . . . . . . . . . Scanalyzers 2 | . . . . . . . . 1 . 1 Garrison Access 3 | . . . . . 1 1 . 1 . . Total Hacks 53 | . 23 8 . . 2 2 5 5 . 8 Successful 24 | . 9 6 . . . 1 1 3 . 4 Failed 28 | . 14 2 . . 2 1 4 1 . 4 Catastrophic 4 | . 1 . . . 1 . 1 . . 1 Database Lockouts 1 | . . . . . . . . 1 . . Manual 36 | . 27 6 . . . . . . . 3 Terminals 35 | . 22 8 . . . . 5 . . . Fabricators 3 | . . . . . . . . . . 3 Repair Stations 3 | . . . . . . . . . . 3 Recycling Units 1 | . 1 . . . . . . . . . Scanalyzers 6 | . . . . . . . . 4 . 2 Garrison Access 5 | . . . . . 2 2 . 1 . . Terminal Hacks 4 | . 1 2 . . . . 1 . . . Emergency Access Points 1 | . . . . . . . 1 . . . Terminal Index 2 | . 1 1 . . . . . . . . Unreport Threat 1 | . . 1 . . . . . . . . Fabricator Hacks . | . . . . . . . . . . . Repair Station Hacks 2 | . . . . . . . . . . 2 Scan Component 1 | . . . . . . . . . . 1 Repair 1 | . . . . . . . . . . 1 Recycling Unit Hacks 1 | . 1 . . . . . . . . . Retrieve Components 1 | . 1 . . . . . . . . . Scanalyzer 4 | . . . . . . . . 2 . 2 Retrieve Study 4 | . . . . . . . . 2 . 2 Garrison Access Hacks 2 | . . . . . . 1 . 1 . . Unlock Access 2 | . . . . . . 1 . 1 . . Unauthorized Hacks 11 | . 7 4 . . . . . . . . Terminals 11 | . 7 4 . . . . . . . . Track 1 | . 1 . . . . . . . . . Botnet 8 | . 5 3 . . . . . . . . Operators 2 | . 1 1 . . . . . . . . Fabricators . | . . . . . . . . . . . Repair Stations . | . . . . . . . . . . . Recycling Units . | . . . . . . . . . . . Scanalyzers . | . . . . . . . . . . . Garrison Access . | . . . . . . . . . . . Data Cores Recovered 1 | . . . . 1 . . . . . . Used . | . . . . . . . . . . . Hacking Detections 20 | . 8 3 . . 1 1 2 2 . 3 Full Trace Events . | . . . . . . . . . . . Feedback Events . | . . . . . . . . . . . Feedback Blocked . | . . . . . . . . . . . Robot Schematics Acquired . | . . . . . . . . . . . Robots Built . | . . . . . . . . . . . Authchips . | . . . . . . . . . . . Time . | . . . . . . . . . . . Total Robot Build Rating . | . . . . . . . . . . . Part Schematics Acquired . | . . . . . . . . . . . Parts Built . | . . . . . . . . . . . Authchips . | . . . . . . . . . . . Time . | . . . . . . . . . . . Total Part Build Rating . | . . . . . . . . . . . Part Studies Acquired 4 | . . . . . . . . 2 . 2 Parts Repaired 1 | . . . . . . . . . . 1 Time 25 | . . . . . . . . . . 25 Parts Recycled . | . . . . . . . . . . . Recycled Matter . | . . . . . . . . . . . Retrieved Matter . | . . . . . . . . . . . Retrieved Components 5 | . 5 . . . . . . . . . Parts Scanalyzed . | . . . . . . . . . . . Part Schematics Acquired . | . . . . . . . . . . . Parts Damaged . | . . . . . . . . . . . Bothacking | -11 -10 -9 -9 -8 -7 -6 -6 -6 -6 -5 ------------ Run | Yrd Mat Mat Min Mat Fac Fac Gar Fac Gar Fac Used RIF Installer 2 | . . . . . . . 1 . 1 . Alert ID Control 1 | . . . . . . . . . 1 . Crosswire 1 | . . . . . . . 1 . . . Robots Hacked 21 | . . . . . . . . 5 13 3 Non-combat 2 | . . . . . . . . . . 2 Combat 19 | . . . . . . . . 5 13 1 Robot Hacks Applied 21 | . . . . . . . . 5 13 3 parse_system 2 | . . . . . . . . . 1 1 mark_system 1 | . . . . . . . . . 1 . amplify_resonance 1 | . . . . . . . . . 1 . overwrite_iff 1 | . . . . . . . . . 1 . formatsys_high 16 | . . . . . . . . 5 9 2 Relay Couplers Released 35 | . . . . . . . 24 . 11 . Machine Destruction 35 | . . . . . . . 24 . 11 . Attached 19 | . . . . . . . 11 . 8 . Crosswired 7 | . . . . . . . 4 . 3 . Fabnet Peak Effective % . | . . . . . . . . . . . Robots Rewired 4 | . . . . . . . 2 . 2 . Allies Hacked 1 | . . . . . . . . . 1 . Hacks Repelled . | . . . . . . . . . . . Allies | -11 -10 -9 -9 -8 -7 -6 -6 -6 -6 -5 -------- Run | Yrd Mat Mat Min Mat Fac Fac Gar Fac Gar Fac Total Allies 30 | . . . . . 6 . 2 5 14 3 Largest Group 7 | . . . . . 5 . 2 3 7 1 Highest-Rated Group 322 | . . . . . 60 . 296 154 322 29 Highest-Rated Ally 148 | . . . . . 12 . 148 90 148 29 Total Orders 5 | . . . . . . . 3 . 2 . FOLLOW 2 | . . . . . . . 1 . 1 . GUARD 3 | . . . . . . . 2 . 1 . Ally Attacks 159 | . . . . . 45 . 29 4 79 2 Total Damage 3284 | . . . . . 380 . 788 104 1973 39 Kills 23 | . . . . . 5 . 5 1 11 1 Allies Corrupted 4 | . . . . . . . . 2 1 1 Allies Melted 1 | . . . . . . . . . 1 . X0-1V1 Amusement Gains 135 | . 4 5 . . 51 . 30 10 35 . Good Acts 84 | . . 4 6 1 38 . 7 4 16 8 Bad Acts 52 | . . 5 1 1 36 . 5 3 1 . Intel | -11 -10 -9 -9 -8 -7 -6 -6 -6 -6 -5 ------- Run | Yrd Mat Mat Min Mat Fac Fac Gar Fac Gar Fac Active Infowar (turns) 449 | . . . 2 . 298 10 139 . . . Sensors 449 | . . . 2 . 298 10 139 . . . Robot Analysis Total . | . . . . . . . . . . . Derelict Logs Recovered . | . . . . . . . . . . . Drone Launches . | . . . . . . . . . . . Drone Recoveries . | . . . . . . . . . . . Exploration | -11 -10 -9 -9 -8 -7 -6 -6 -6 -6 -5 ------------- Run | Yrd Mat Mat Min Mat Fac Fac Gar Fac Gar Fac Turns Passed 5585 | 68 1296 391 489 297 299 10 589 266 1027 853 Spaces Moved 4848 | 45 827 233 273 264 725 21 639 372 845 604 Core 233 | 5 . . . . 40 . 3 . 106 79 Treads 594 | 4 . . . . . . . . 356 234 Legs 1626 | 36 827 233 273 93 . . 164 . . . Wheels . | . . . . . . . . . . . Hover 203 | . . . . . . . . . 203 . Flight 2192 | . . . . 171 685 21 472 372 180 291 Fastest Speed 5 | 50 120 120 120 29 26 35 5 5 5 31 Average Speed 79 | 115 120 120 120 61 27 35 51 22 92 102 Slowest Speed 250 | 160 190 120 120 120 50 35 120 23 160 250 Overloaded Moves 83 | . . . . . . . 16 3 64 . Propulsion Burnouts . | . . . . . . . . . . . Robots Hopped 11 | . . . . 1 2 . 4 3 1 . Potential Cave-ins 2 | . . . . . 2 . . . . . Cave-ins Triggered . | . . . . . . . . . . . Exploration Rate (%) 35 | 3 99 20 53 21 27 1 68 13 68 14 Regions Visited 10 Branch Regions 1 Pre-discovered Areas . | . . . . . . . . . . . Known Exits Taken 5 | . . 1 1 . 1 1 . 1 . . Unknown Exits Taken 3 | 1 1 . . 1 . . . . . . Scrap Searched 1 | . . . 1 . . . . . . . Spaces Dug 4 | . . . . 2 2 . . . . . Terrain Destroyed 238 | . 3 3 . 4 2 . 54 . 172 . Melee 4 | . . . . 2 2 . . . . . Projectile 2 | . . . . 2 . . . . . . AOE 232 | . 3 3 . . . . 54 . 172 . Terrain Rammed . | . . . . . . . . . . . Walls Destroyed . | . . . . . . . . . . . Machines Disabled . | . . . . . . . . . . . Actions | -11 -10 -9 -9 -8 -7 -6 -6 -6 -6 -5 --------- Run | Yrd Mat Mat Min Mat Fac Fac Gar Fac Gar Fac Total 6164 | 58 1023 307 435 365 796 23 808 545 1042 762 Wait 594 | . 91 25 153 12 . . 35 167 76 35 Move 4819 | 44 826 232 272 261 720 21 632 365 842 604 Hop 9 | . . . . 1 2 . 2 3 1 . Pick Up 66 | 2 18 10 2 11 4 1 10 . 7 1 Fast Attach 120 | 9 9 6 2 17 6 . 27 3 22 19 Attach 39 | . 2 3 2 8 9 1 5 . 6 3 Detach 15 | . . . 1 3 2 . 3 . 2 4 Swap 25 | . 8 1 . 2 5 . . . 7 2 Drop 118 | 3 15 8 3 24 14 . 18 1 13 19 Fire 166 | . 54 12 . 18 . . 26 6 46 4 Melee 128 | . . 10 . 8 34 . 27 . 4 45 Ram 9 | . . . . . . . . . . 9 Kick . | . . . . . . . . . . . Crush 2 | . . . . . . . . . . 2 Escape Stasis 39 | . . . . . . . 12 . 12 15 Rewire 15 | . . . . . . . 11 . 4 . Trap . | . . . . . . . . . . . Miscellaneous . | . . . . . . . . . . . Route ------- -11/Scrapyard -10/Materials (discovered 6 exits: *Mat x3 / [*Min x2] / [*Sub]) -9/Materials (discovered 2 exits: *Min x2) -9/Mines (discovered 2 exits: *Mat x2) -8/Materials -7/Factory (discovered 4 exits: *Fac x2 / Low x2) -6/Factory -6/Garrison (discovered 2 exits: *Fac x2) -6/Factory (discovered 2 exits: [*Low] / Gar) -6/Garrison (discovered 3 exits: *Fac x3) -5/Factory (discovered 1 exit: [*Fac]) History --------- Turn | Location | Event 48 | -11/Scrapyard | Discovered new exit (range 14) 69 | -11/Scrapyard | Entered Materials 314 | -10/Materials | Build established: Mutant 452 | -10/Materials | Discovered new exit (range 7) 512 | -10/Materials | Discovered new exit (range 4) 1034 | -10/Materials | Discovered new exit (range 10) 1115 | -10/Materials | Discovered new exit (range 12) 1219 | -10/Materials | Discovered new exit (range 6) 1260 | -10/Materials | Discovered new exit (range 4) 1329 | -10/Materials | Prayed at D.C.S.S. Altar Unit 1365 | -10/Materials | Entered another Materials area 1365 | -9/Materials | Evolved 2 slots: Propulsion x1, Utility x1 1600 | -9/Materials | X0-1V1 sent hostile G-34 Mercenary (x4) 1647 | -9/Materials | Core integrity permanently improved by X0-1V1 (+200) 1672 | -9/Materials | X0-1V1 foreshadows a heat wave 1714 | -9/Materials | Discovered new exit (range 8) 1754 | -9/Materials | Identified exit to Mines 1754 | -9/Materials | X0-1V1 revealed exit location to -9/Mines 1756 | -9/Materials | Entered Mines 1761 | -9/Mines | A weapon hastily lodged in a ceiling crevice suddenly fell to the ground 1878 | -9/Mines | Mass support permanently improved by X0-1V1 (+7; -210 max core) 1966 | -9/Mines | X0-1V1 activates XOMVISION 2049 | -9/Mines | Found a damaged Exp. Sensor Array with a note attached 2052 | -9/Mines | Found Prototype Device 2052 | -9/Mines | Identified Exp. Sensor Array 2081 | -9/Mines | Received a Rocket Launcher from a helpful Derelict 2094 | -9/Mines | Identified exit to Materials 2094 | -9/Mines | X0-1V1 revealed exit location to -8/Materials 2145 | -9/Mines | X0-1V1 added 0b10 threat records associated with you (considerable) 2234 | -9/Mines | X0-1V1 revealed exit location to -8/Materials 2245 | -9/Mines | Entered Materials 2245 | -8/Materials | Evolved 2 slots: Utility x2 2274 | -8/Materials | X0-1V1 sent you to a vault 2292 | -8/Materials | Found Prototype Device 2292 | -8/Materials | Identified Skeleton Box 2400 | -8/Materials | Lost 4 parts (1p1n1u1w) 2508 | -8/Materials | Discovered new exit (range 9) 2518 | -8/Materials | X0-1V1 sent hostile G-34 Mercenary (x4) 2542 | -8/Materials | Entered Factory 2542 | -7/Factory | Evolved 2 slots: Propulsion x1, Utility x1 2547 | -7/Factory | X0-1V1 mutated your Weapon slot to Utility slot 2550 | -7/Factory | Utility slot count permanently improved by X0-1V1 (+1) 2552 | -7/Factory | X0-1V1 vaporized surrounding terrain (radius 22) 2554 | -7/Factory | X0-1V1 released a cloud of subatomizers 2555 | -7/Factory | X0-1V1 sent you to a vault 2555 | -7/Factory | X0-1V1 activates XOMVISION 2559 | -7/Factory | Identified exit to Factory 2559 | -7/Factory | X0-1V1 revealed exit location to -6/Factory 2559 | -7/Factory | X0-1V1 announced a LAN party 2559 | -7/Factory | X0-1V1 redirected Transport squads to designated parking area 2571 | -7/Factory | X0-1V1 vaporized surrounding terrain (radius 16) 2572 | -7/Factory | Identified exit to Lower Caves 2572 | -7/Factory | X0-1V1 revealed exit location to -7/Lower Caves 2578 | -7/Factory | X0-1V1 rewrote Virus 4b IFF filter 2581 | -7/Factory | System corruption reached 10% 2590 | -7/Factory | X0-1V1 revealed exit location to -7/Lower Caves 2602 | -7/Factory | X0-1V1 turns hostiles against one another 2609 | -7/Factory | Garrison activated, responded to threat 2616 | -7/Factory | X0-1V1 upgraded hostiles (x2) 2618 | -7/Factory | X0-1V1 sent you into danger 2638 | -7/Factory | X0-1V1 sent you into danger 2645 | -7/Factory | Forcibly received Sfc. Transmogifier from X0-1V1 2665 | -7/Factory | X0-1V1 added 0b10 threat records associated with you (minor) 2670 | -7/Factory | Lost 3 allies 2722 | -7/Factory | X0-1V1 enhanced Transport squad support 2739 | -7/Factory | X0-1V1 revealed exit location to -6/Factory 2772 | -7/Factory | X0-1V1 sent hostile X-57 Shotgunner (x3) 2776 | -7/Factory | X0-1V1 mutated your Propulsion slot to Weapon slot 2824 | -7/Factory | Core integrity fell below 50% 2838 | -7/Factory | Core integrity fell below 20% 2840 | -7/Factory | X0-1V1 upgraded hostiles (x3) 2841 | -7/Factory | Entered another Factory area 2841 | -6/Factory | Evolved 2 slots: Propulsion x2 2851 | -6/Factory | Identified exit to Garrison 2851 | -6/Factory | Entered Garrison 2854 | -6/Garrison | Spotted B-86 Titan 2862 | -6/Garrison | Rewired B-90 Cyclops 2867 | -6/Garrison | Lost 8 parts (1p4n2u1w) 2871 | -6/Garrison | Rewired B-90 Cyclops 2923 | -6/Garrison | Triggered checkpoint 2942 | -6/Garrison | X0-1V1 upgraded hostiles (x1) 3021 | -6/Garrison | Lost 4 parts (1n2u1w) 3061 | -6/Garrison | Triggered checkpoint 3074 | -6/Garrison | Core integrity restored by X0-1V1 (+193) 3129 | -6/Garrison | Triggered checkpoint 3186 | -6/Garrison | Installed Relay Interface Framework 3228 | -6/Garrison | Discovered new exit (range 3) 3236 | -6/Garrison | X0-1V1 activates XOMVISION 3265 | -6/Garrison | Phase Generator disabled 3288 | -6/Garrison | Garrison Relay disabled 3327 | -6/Garrison | Lost 4 parts (2n1u1w) 3327 | -6/Garrison | Garrison Relay disabled 3349 | -6/Garrison | Garrison Relay disabled 3356 | -6/Garrison | Garrison Relay disabled 3376 | -6/Garrison | Expanded RIF knowledge: Crosswire 3384 | -6/Garrison | Garrison Relay disabled 3411 | -6/Garrison | Triggered checkpoint 3415 | -6/Garrison | Core integrity restored by X0-1V1 (+159) 3416 | -6/Garrison | Discovered new exit (range 13) 3417 | -6/Garrison | X0-1V1 mutated your Weapon slot to Power slot 3426 | -6/Garrison | Garrison Relay disabled 3440 | -6/Garrison | Entered Factory 3455 | -6/Factory | X0-1V1 redirected Transport squads to designated parking area 3456 | -6/Factory | X0-1V1 activates XOMVISION 3524 | -6/Factory | Discovered new exit (range 6) 3538 | -6/Factory | Central database locked down 3552 | -6/Factory | Identified exit to Garrison 3670 | -6/Factory | X0-1V1 activates XOMVISION 3706 | -6/Factory | Entered Garrison 3706 | -6/Garrison | Accompanied by 3 allies 3710 | -6/Garrison | Triggered checkpoint 3721 | -6/Garrison | Build established: Bothacker-Sprinter 3791 | -6/Garrison | Found embedded Infiltrators 3791 | -6/Garrison | X0-1V1 activates XOMVISION 3797 | -6/Garrison | Triggered checkpoint 3797 | -6/Garrison | Triggered checkpoint 3798 | -6/Garrison | Triggered checkpoint 3801 | -6/Garrison | Discovered new exit (range 13) 3824 | -6/Garrison | Garrison Relay disabled 3829 | -6/Garrison | Lost 3 parts (1p2n) 3839 | -6/Garrison | Triggered checkpoint 3917 | -6/Garrison | Garrison Relay disabled 3923 | -6/Garrison | Lost 4 allies 3924 | -6/Garrison | Identified exit to Factory 3924 | -6/Garrison | X0-1V1 revealed exit location to -5/Factory 4036 | -6/Garrison | Spotted B-75 Beast 4047 | -6/Garrison | Core integrity fell below 50% 4054 | -6/Garrison | Spotted B-86 Titan 4054 | -6/Garrison | Spotted B-86 Titan 4058 | -6/Garrison | Rewired B-90 Cyclops 4062 | -6/Garrison | Destroyed B-75 Beast 4068 | -6/Garrison | X0-1V1 revealed exit location to -5/Factory 4090 | -6/Garrison | Destroyed B-86 Titan 4091 | -6/Garrison | Core integrity fell below 20% 4098 | -6/Garrison | Destroyed B-86 Titan 4101 | -6/Garrison | Lost 5 allies 4121 | -6/Garrison | Lost 11 parts (2p3n3u3w) 4166 | -6/Garrison | Rewired B-86 Titan 4208 | -6/Garrison | Triggered checkpoint 4228 | -6/Garrison | Garrison Relay disabled 4371 | -6/Garrison | Build established: Mutant 4490 | -6/Garrison | System corruption reached 10% 4690 | -6/Garrison | Expanded RIF knowledge: Alert ID Control 4733 | -6/Garrison | Entered Factory 4733 | -5/Factory | Evolved 2 slots: Utility x2 4816 | -5/Factory | Build established: Scavenger-Mutant 4918 | -5/Factory | X0-1V1 activates XOMVISION 4935 | -5/Factory | Repaired Imp. Heavy Armor Plating 5334 | -5/Factory | Discovered new exit (range 12) 5434 | -5/Factory | X0-1V1 sent you to a vault 5493 | -5/Factory | Garrison activated, responded to threat 5517 | -5/Factory | Found Chaos Jack 5568 | -5/Factory | Core integrity fell below 50% 5586 | -5/Factory | Self-destructed Last Messages --------------- 05573_ U-05 Engineer lays Concrete. 05574_ U-05 Engineer builds a Door. 05574_ U-05 Engineer builds a Wall. 05576_ K-01 Serf collects debris. 05577_ Destroyed Lgt. Nuclear Core. 05577_ Relay Coupler [Sentry] destroyed. 05578_ U-05 Engineer builds a Wall. 05579_ K-01 Serf collects debris. 05580_ U-05 Engineer builds a Wall. 05580_ S-27 Virus suffers critical hit (Impale). 05580_ Destroyed VTOL Module. 05580_ S-27 Virus destroyed. 05582_ K-01 Serf collects debris. 05583_ U-05 Engineer lays Concrete. 05584_ Dropped Adv. Thermal Shield. 05584_ U-05 Engineer lays Concrete. 05584_ Slammed into U-05 Engineer. 05585_ ALERT: Construction progress impeded, dispatching reinforcements to local area. 05585_ U-05 Engineer lays Concrete. Map ----- +----------------------------------------------------+ | ?????????????????????????????????????????????????? | | ?????????????????????????????????????????????????? | | ????????????????????????????????????????+????????? | | ?????????????????????????????????????????????????? | | ?????????????????????????????????????????????????? | | ?????????????????????????????????????????????????? | | ?????????????????????????????????????????????????? | | ?????????????????????????????????????????????????? | | ?????????????????????????????????????????????????? | | ?????????????????????????????????????????????????? | | ?????????????????????????????????????????????????? | | ?????????????????????????????????????????????????? | | ???????????????? ????????????????????????????????? | | ??????????????# ???????????????????????????????? | | ??????????????# #??????????????????????????????? | | ??????????????# #??????????????????????????????? | | ??????????????+ #??????????????????????????????? | | ??????????????# #??????????????????????????????? | | ??????????????# #??????????????????????????????? | | ??????????????# #??????????????????????????????? | | ??????????????# #??????????????????????????????? | | ??????????????# #?????######???????????????????? | | ??????????????# #???###=!! #???????????????????? | | ?????????????## #######=[! #???????????????????? | | ?????????????# = #!![*#???????????????????? | | ???????####### %!#@[[ #???????????????????? | | ???????+ !=[/u[!*##########??????????? | | ???????# %k%#!!=]# #??????????? | | ???????# ]! %%%#[== # #??????????? | | ???????+ ]! ##%*[#= = # #??????????? | | ???????# ]!! ## [=###### #??????????? | | ???????# ##=/! + = #??????????? | | ######## ##%!!###### #??????????? | | !] ######????# #??????????? | | ]] + #???????? ? | | ###+###########?# #?????? ""?? | | # #?#####+####???? """? | | """" # %% #??# #?? """? | | """" # #??# # """? | | """" # #??# / """? | | """" ## #??# # """? | | """" + #??# #?? """? | | """" ########+#######?#####+##+#???? | | # #??# #???????# #?????? | | #??# ######### / #???????? | | +############ #??# # ## // #??????????# | | ?########## ##??# # """ ## #??????????? | | ## # ##### # """ ## #??????????? | | ## + + R" ## """ #??????????? | | [ ## ####### # """ ## """"" #??????????? | +----------------------------------------------------+ Best States ------------- Heat Dissipation 73 Coolant Potential 100 Energy Generation 31 Energy Capacity 1795 Matter Stores 800 Matter Capacity 1000 Sight Range 22 Robot Scan Range 20 Terrain Scan Density 10 Base Temperature (-) 150 Armor Coverage 600 Resistance: KI 41 Resistance: TH 30 Melee Speed Boost 50 Evasion (%) 75 Targeting Accuracy 20 Melee Accuracy 6 Core Analysis 9 Recoil Reduction 5 Relay Coupler Types 8 Relay Coupler Value 174 Item Schematics ----------------- None Robot Schematics ------------------ None Fabricated ------------ Nothing Repaired ---------- Imp. Heavy Armor Plating | 19% | -5/Factory Studied --------- Remote Datajack | -6/Factory | Hacked Surge Thruster | -6/Factory | Hacked Hvy. Treads | -5/Factory | Hacked Lgt. Treads | -5/Factory | Hacked Alien Tech Used ----------------- None Achievements -------------- A Problem For Future Me Chaos Is Inevitable Join The Dark Side Let Me Out Of Here Mindtrick Satisfying You Will Be Upgraded Challenges ------------ None Game ------ Seed FusionSmartTurretformer Manual? 0 Play Time 02:09:50 Cumulative 125.6 hours Start 2026.07.14 @ 10:54:28 End 2026.07.14 @ 13:20:51 Sessions 1 Manual Loads 0 Difficulty Rogue Special Mode None Game No. 105 Rogue 105 Adventurer 0 Explorer 0 Win Type - Total 1 Types 1/0/0/0/0/0/0/0/0/0 Lore% 48 Gallery% 48 Achievement% 32 Wizard Run 0 Options --------- Layout 1 ASCII 0 Keyboard 0 Movement Mouse Keybinds 0 Fullscreen 1 Font 24/Smallcaps Map View 50x35 Zoom Use 0% Tactical HUD 1 Map Filters NONE Filters NONE Steam 1 RUN: 0055c9c1-dd1f-4522-a620-ea2def4ad002